bitfinex-derivatives/quotes_ETHF0:USTF0_20250906
["timestamp","ask_amount","ask_price","bid_price","bid_amount"]
[1757152382020,4.55525617,4297.6,4297.5,0.9664]
[1757152382311,4.55525617,4297.6,4297.5,1.25357081]
[1757152383615,4.55525617,4297.6,4297.5,0.28717081]
[1757152383816,0.8191,4297.5,4297.4,0.234]
[1757152384016,1.46475617,4297.5,4297.4,0.5542]
[1757152384811,1.46475617,4297.5,4297.4,0.234]
[1757152387921,1.46475617,4297.5,4297.4,0.5542]
[1757152389617,1.46475617,4297.5,4297.4,0.234]
[1757152390517,0.3046,4297.4,4297.2,0.234]
[1757152390821,1.34745617,4297.3,4297.2,0.7527]
[1757152391123,1.04285617,4297.3,4297.2,0.234]
[1757152391318,1.04285617,4297.3,4296.8,0.3202]
[1757152391522,0.64565617,4297.2,4297.0,0.234]
[1757152391724,1.34745617,4297.1,4297.0,0.5542]
[1757152393524,1.34745617,4297.1,4297.0,0.234]
[1757152395125,1.34745617,4297.1,4297.0,0.5542]
[1757152395827,1.34745617,4297.1,4297.0,0.3202]
[1757152397028,1.34745617,4297.1,4297.0,0.5187]
[1757152397226,0.1173,4297.0,4296.1,3.2078]
[1757152397530,0.7018,4296.2,4296.1,0.1985]
[1757152397826,1.34745617,4296.2,4296.1,0.7324]
[1757152398424,1.34745617,4296.2,4296.1,1.58146392]
[1757152399133,1.04285617,4296.2,4296.1,1.58146392]
[1757152400331,0.3972,4296.2,4296.1,1.58146392]
[1757152400531,0.2026,4296.2,4296.1,1.58146392]
[1757152404026,0.5027,4296.2,4296.1,1.58146392]
[1757152404232,0.7045,4296.2,4296.1,0.7324]
[1757152406134,0.7045,4296.2,4296.1,0.5542]
[1757152406938,0.7045,4296.2,4296.1,0.7658]
[1757152407340,0.3001,4296.1,4296.0,32.4158]
[1757152407638,0.4109,4296.1,4295.6,3.2078]
[1757152407831,0.4109,4295.8,4295.7,0.4456]
[1757152408032,0.711,4295.8,4295.7,0.6489]
[1757152408436,0.711,4295.8,4295.7,0.9427]
[1757152408640,0.4109,4295.8,4295.7,0.9427]
[1757152411741,0.711,4296.4,4296.3,0.4149]
[1757152412039,1.3603043,4296.4,4296.3,0.9427]
[1757152418938,4.5681043,4296.4,4296.3,0.9427]
[1757152422241,4.0662043,4296.4,4296.3,0.9427]
[1757152423844,4.3663043,4296.4,4296.3,0.9427]
[1757152424034,4.5681043,4296.4,4296.3,0.9427]
[1757152436156,4.2680043,4296.4,4296.3,0.9427]
[1757152436454,4.5899043,4296.4,4296.3,0.9427]
[1757152437053,0.6493043,4296.4,4296.3,1.17546]
[1757152437959,0.6493043,4296.4,4296.3,0.9427]
[1757152440860,0.6493043,4296.4,4296.3,5.17546]
[1757152441756,0.6493043,4296.4,4296.3,4.9427]
[1757152442253,0.6493043,4296.4,4296.3,0.9427]
[1757152444553,3.2078,4296.9,4296.3,0.6489]
[1757152444756,1.38860547,4296.8,4296.7,0.4077]
[1757152444955,1.38860547,4296.8,4296.7,0.9353]
[1757152452763,1.38860547,4296.8,4296.1,5.371]
[1757152452764,1.06670547,4296.8,4296.3,0.2936]
[1757152452968,0.5319,4296.2,4296.1,6.0723]
[1757152453160,0.5319,4296.2,4296.1,6.3063]
[1757152454067,0.5319,4296.2,4296.1,0.9353]
[1757152455066,0.21,4296.2,4296.1,0.9353]
[1757152455670,0.737,4296.2,4296.1,0.7013]
[1757152455866,0.4151,4296.2,4296.1,0.9353]
[1757152456267,0.737,4296.2,4296.1,0.9353]
[1757152456765,0.4151,4296.2,4296.1,0.9353]
[1757152457171,0.21,4296.2,4296.1,0.9353]
[1757152459268,0.7036,4296.8,4296.7,0.3965]
[1757152459469,1.35241796,4296.8,4296.7,0.9321]
[1757152463864,3.2078,4297.4,4296.7,4.86323]
[1757152464071,3.2078,4297.4,4297.3,1.70430683]
[1757152464270,3.2078,4297.4,4297.3,1.93830683]
[1757152464460,3.4091,4297.4,4297.3,1.93830683]
[1757152466971,0.3071,4297.7,4297.3,1.93830683]
[1757152467167,0.2013,4297.6,4297.5,0.1161]
[1757152467475,0.2013,4297.6,4297.5,1.36146753]
[1757152467867,0.2013,4297.6,4297.5,1.66306753]
[1757152468666,0.7036,4297.6,4297.5,1.66306753]
[1757152471571,0.7036,4297.9,4297.8,0.3965]
[1757152471883,0.7036,4297.9,4297.8,0.9311]
[1757152472868,0.7036,4297.9,4297.8,0.7374]
[1757152475878,1.34275813,4297.9,4297.8,0.7374]
[1757152478080,1.34275813,4297.9,4297.8,0.9311]
[1757152479375,1.34275813,4297.9,4297.8,0.233]
[1757152479779,1.34275813,4297.9,4297.6,0.5346]
[1757152479982,0.7036,4297.7,4297.6,0.5346]
[1757152480278,1.34275813,4297.7,4297.6,0.5346]
[1757152481076,1.34275813,4297.7,4297.6,0.3016]
[1757152481281,1.34275813,4297.7,4297.6,0.5346]
[1757152481581,1.34275813,4297.7,4297.6,0.7374]
[1757152482082,0.84045813,4297.7,4297.6,0.9311]
[1757152483182,0.63915813,4297.7,4297.6,0.9311]
[1757152483580,3.2078,4298.0,4297.6,4.86219]
[1757152483881,3.2078,4298.0,4297.9,1.54696753]
[1757152485887,3.4091,4298.0,4297.9,1.54696753]
[1757152486183,0.2013,4298.0,4297.9,1.77996753]
[1757152487578,0.7036,4298.0,4297.9,1.77996753]
[1757152490390,0.3965,4298.0,4297.9,1.77996753]
[1757152490889,0.2013,4298.0,4297.9,1.77996753]
[1757152491288,0.2972,4298.3,4298.0,0.1178]
[1757152491587,0.2972,4298.3,4298.2,1.57766753]
[1757152491588,0.495,4298.3,4298.2,1.57766753]
[1757152491991,0.83170735,4298.3,4298.2,1.57766753]
[1757152493087,1.12890735,4298.3,4298.2,1.57766753]
[1757152494689,0.83170735,4298.3,4298.2,1.57766753]
[1757152495394,1.34140735,4298.3,4298.2,1.57766753]
[1757152497197,1.34171961,4298.3,4298.2,1.57766753]
[1757152502305,1.34171961,4298.3,4298.2,1.86453785]
[1757152502797,0.63421961,4298.3,4298.2,1.86453785]
[1757152503098,1.36601251,4299.5,4298.3,0.7288]
[1757152503099,0.1978,4298.4,4298.3,0.7288]
[1757152503399,0.495,4298.4,4298.3,1.01567032]
[1757152503798,0.1978,4298.4,4298.3,1.01567032]
[1757152504999,0.1978,4298.4,4298.3,1.24867032]
[1757152505592,0.1978,4298.4,4298.3,1.24857169]
[1757152505793,0.1978,4298.4,4298.3,1.01557169]
[1757152505997,0.1978,4298.4,4298.3,1.24857169]
[1757152509202,0.2972,4298.7,4298.3,1.24857169]
[1757152509403,0.82930118,4298.6,4298.5,1.69546753]
[1757152509699,0.82930118,4298.6,4298.5,1.98223922]
[1757152510002,0.82929645,4298.6,4298.5,1.98223922]
[1757152510502,0.63149645,4298.6,4298.5,1.98223922]
[1757152518608,0.63149645,4298.6,4298.5,1.98240307]
[1757152520802,0.2972,4299.0,4298.9,0.212]
[1757152521001,0.4925,4299.0,4298.9,2.09640307]
[1757152521402,1.1238619,4299.0,4298.9,2.09640307]
[1757152521706,0.8266619,4299.0,4298.9,2.09640307]
[1757152522106,0.6313619,4299.0,4298.9,2.09640307]
[1757152522310,3.4031,4299.5,4299.4,0.4147]
[1757152522507,4.03456699,4299.5,4299.4,2.09640307]
[1757152524309,4.34776699,4299.5,4299.4,2.09640307]
[1757152524706,4.55666699,4299.5,4299.4,2.09640307]
[1757152529511,8.90635699,4299.5,4299.4,0.28693554]
[1757152529710,8.90635699,4299.5,4298.8,0.132]
[1757152530015,0.5909,4298.6,4298.5,0.3298]
[1757152530213,0.5909,4298.6,4298.5,0.233]
[1757152530414,1.22236699,4298.6,4298.5,0.233]
[1757152530616,1.22236699,4298.6,4298.5,0.5459]
[1757152531518,1.22236699,4298.6,4298.5,0.3129]
[1757152531817,1.22236699,4298.6,4298.5,0.5459]
[1757152532517,1.22236699,4298.6,4298.5,1.0846]
[1757152534116,1.03566699,4298.6,4298.5,1.0846]
[1757152536420,0.63146699,4298.6,4298.5,1.0846]
[1757152536718,0.82676699,4298.6,4298.5,1.0846]
[1757152541125,0.63146699,4298.6,4298.5,1.0846]
[1757152541626,0.82676699,4298.6,4298.5,1.0846]
[1757152541814,0.63146699,4298.6,4298.5,1.0846]
[1757152543428,0.82676699,4298.6,4298.5,1.0846]
[1757152546329,1.03566699,4298.6,4298.5,0.8516]
[1757152546518,0.82676699,4298.6,4298.5,0.8516]
[1757152546919,0.63146699,4298.6,4298.5,0.8516]
[1757152547630,0.82676699,4298.6,4298.5,0.8516]
[1757152550132,1.03826699,4298.6,4298.5,0.8516]
[1757152551246,0.63146699,4298.6,4298.5,0.8516]
[1757152557350,1.22386699,4298.6,4298.5,0.8516]
[1757152557648,1.22386699,4298.6,4298.0,1.12255399]
[1757152557649,0.5924,4298.1,4298.0,0.1178]
[1757152557948,1.22386699,4298.1,4298.0,0.3508]
[1757152558144,1.22386699,4298.1,4298.0,0.5587]
[1757152558348,1.22386699,4298.1,4298.0,0.8539]
[1757152559652,1.03696699,4298.1,4298.0,0.8539]
[1757152560553,1.03696699,4298.1,4298.0,1.0513]
[1757152560744,0.82546699,4298.1,4298.0,1.0513]
[1757152561351,1.03696699,4298.1,4298.0,1.0513]
[1757152562752,1.22386699,4298.1,4298.0,1.0513]
[1757152562952,1.03696699,4298.1,4298.0,1.0513]
[1757152564246,1.22386699,4298.1,4298.0,0.5282]
[1757152564446,1.22386699,4298.1,4298.0,0.233]
[1757152565046,1.22386699,4298.1,4297.8,0.2952]
[1757152565351,0.5924,4297.8,4297.7,0.7361]
[1757152565653,1.22386699,4297.8,4297.7,0.7361]
[1757152566154,1.03696699,4297.8,4297.7,0.7361]
[1757152567149,1.03696699,4297.8,4297.7,0.9335]
[1757152569051,0.82546699,4297.8,4297.7,0.9335]
[1757152570050,0.63146699,4297.8,4297.7,0.9335]
[1757152570351,0.63146699,4298.2,4297.7,0.9335]
[1757152570558,0.4055,4298.1,4298.0,0.6318]
[1757152570749,1.03696699,4298.1,4298.0,0.6318]
[1757152571752,1.22386699,4298.1,4298.0,0.6318]
[1757152572058,1.03696699,4298.1,4298.0,0.8292]
[1757152572960,0.63146699,4298.1,4298.0,0.8292]
[1757152573154,0.63146699,4298.3,4298.0,0.534]
[1757152573459,0.82546699,4298.3,4298.2,0.7005]
[1757152573657,1.03696699,4298.3,4298.2,0.7005]
[1757152575460,1.22386699,4298.3,4298.2,0.7005]
[1757152576655,0.5924,4298.2,4298.1,0.5031]
[1757152576955,1.03696699,4298.2,4298.1,0.7005]
[1757152578664,0.63146699,4298.2,4298.1,0.7005]
[1757152578862,0.63146699,4298.2,4298.1,0.7092]
[1757152579057,0.63146699,4298.2,4298.1,0.4053]
[1757152579261,3.2078,4298.4,4298.2,0.3039]
[1757152579561,3.2078,4298.4,4298.3,1.71595399]
[1757152579865,3.84049289,4298.4,4298.3,1.71595399]
[1757152580560,0.63269289,4298.4,4298.3,1.71595399]
[1757152582363,0.63269289,4298.4,4298.3,2.03993715]
[1757152583264,0.63269289,4298.4,4298.3,1.71595399]
[1757152586066,3.4177,4299.0,4298.9,0.4073]
[1757152586275,4.05050218,4299.0,4298.9,0.7112]
[1757152586760,3.84060218,4299.0,4298.9,0.7112]
[1757152587271,4.05050218,4299.0,4298.9,0.7112]
[1757152588763,4.24430218,4299.0,4298.9,0.7112]
[1757152591070,4.05050218,4299.0,4298.9,0.7112]
[1757152591479,4.05050218,4299.0,4298.9,1.55960988]
[1757152592475,4.05050218,4299.0,4298.9,1.84543392]
[1757152593875,4.24430218,4299.0,4298.9,1.84543392]
[1757152596175,4.43090218,4299.0,4298.9,1.84543392]
[1757152597675,4.24430218,4299.0,4298.9,1.84543392]
[1757152598377,4.24430218,4299.0,4298.9,2.1653123]
[1757152599378,4.24430218,4299.0,4298.9,1.84543392]
[1757152600177,1.03650218,4299.0,4298.9,1.84543392]
[1757152602069,0.63280218,4299.0,4298.9,1.84543392]
[1757152602676,3.2078,4299.5,4298.9,1.84543392]
[1757152602879,0.63209668,4299.4,4299.3,0.7112]
[1757152603079,0.63209668,4299.4,4299.3,1.84543392]
[1757152605186,3.83989668,4299.4,4299.3,1.84543392]
[1757152605377,4.04979668,4299.4,4299.3,1.84543392]
[1757152606677,4.04979668,4299.4,4299.3,1.43813392]
[1757152606882,4.43019668,4299.4,4299.3,1.86843392]
[1757152607476,1.03579668,4299.4,4299.3,1.86843392]
[1757152607678,1.03579668,4299.4,4299.3,2.07843392]
[1757152608180,1.03579668,4299.4,4299.3,1.84543392]
[1757152608985,0.84199668,4299.4,4299.3,1.84543392]
[1757152609580,0.63209668,4299.4,4299.3,1.84543392]
[1757152610381,0.63209668,4299.4,4299.3,1.84574274]
[1757152611288,0.82619668,4299.4,4299.3,1.84574274]
[1757152611787,0.63209668,4299.4,4299.3,1.84574274]
[1757152614790,3.6067,4299.9,4299.8,0.7162]
[1757152615086,4.42640239,4299.9,4299.8,2.08374274]
[1757152616583,4.65897239,4299.9,4299.8,0.28613286]
[1757152616789,4.42640239,4299.9,4299.8,0.28613286]
[1757152617089,5.27481227,4299.9,4299.8,0.09893286]
[1757152617395,5.27481227,4299.9,4298.0,0.1287]
[1757152617396,9.32018227,4299.9,4298.4,0.84840988]
[1757152617588,4.05620988,4299.2,4298.6,0.3071]
[1757152617887,0.63250239,4299.1,4298.5,0.4353]
[1757152618085,4.05620988,4299.2,4298.5,0.4353]
[1757152618086,0.63250239,4299.0,4298.6,0.3071]
[1757152618281,0.63250239,4298.9,4298.5,0.1282]
[1757152618487,3.2078,4298.7,4298.6,0.3071]
[1757152618685,3.84030239,4298.7,4298.5,0.1282]
[1757152618887,0.63250239,4298.6,4298.5,0.3071]
[1757152619392,0.63250239,4298.6,4298.5,0.4348]
[1757152620186,0.63250239,4298.6,4298.5,0.642]
[1757152620787,0.63250239,4298.6,4298.5,0.8439]
[1757152626892,0.63250239,4298.6,4298.5,1.0769]
[1757152627297,0.63250239,4298.6,4298.5,0.8439]
[1757152627495,0.63250239,4298.6,4298.5,1.0769]
[1757152627696,0.63250239,4298.6,4298.5,0.4348]
[1757152627994,0.63250239,4298.6,4298.5,0.6678]
[1757152628793,0.63250239,4298.6,4298.1,0.3071]
[1757152628794,4.63250239,4298.6,4298.1,0.3071]
[1757152628990,0.86550239,4298.5,4297.9,0.233]
[1757152629295,0.63250239,4298.4,4297.9,0.5401]
[1757152629499,0.63250239,4298.3,4297.9,0.5401]
[1757152629792,0.63250239,4298.2,4297.9,0.233]
[1757152629989,0.63250239,4298.1,4297.9,0.233]
[1757152630198,0.63250239,4298.0,4297.9,0.5401]
[1757152630388,0.63250239,4298.0,4297.9,0.3071]
[1757152630989,3.84030239,4298.0,4297.9,0.3071]
[1757152634401,3.84030239,4298.0,4297.9,0.5143]
[1757152637103,3.84030239,4298.0,4297.6,0.233]
[1757152637303,3.2078,4298.0,4297.6,1.08140988]
[1757152637504,3.2078,4298.0,4297.7,0.3071]
[1757152637705,0.63034503,4297.9,4297.6,0.3071]
[1757152638004,0.63034503,4297.8,4297.6,0.3071]
[1757152638203,0.63034503,4297.7,4297.6,0.3071]
[1757152640008,0.63034503,4297.7,4297.6,0.5124]
[1757152642806,0.63034503,4297.7,4297.6,0.7141]
[1757152658718,0.63034503,4297.7,4297.6,0.9471]
[1757152667315,0.63034503,4297.7,4297.6,0.5124]
[1757152669427,0.63254503,4297.7,4297.6,0.5124]
[1757152669723,0.63034503,4297.7,4297.6,0.724]
[1757152670824,0.63254503,4297.7,4297.6,0.724]
[1757152672521,0.63254503,4297.7,4297.6,0.5124]
[1757152675527,0.63144503,4297.7,4297.6,0.724]
[1757152677825,0.63254503,4297.7,4297.6,0.724]
[1757152678432,1.09823503,4297.7,4297.6,0.3071]
[1757152679829,0.86554503,4297.7,4297.6,0.3071]
[1757152681429,1.48971276,4297.7,4297.6,0.3071]
[1757152681631,2.12005779,4297.7,4297.6,0.3071]
[1757152689640,2.12005779,4297.7,4297.6,0.5086]
[1757152690039,2.12005779,4297.7,4297.6,0.7202]
[1757152690539,2.12005779,4297.7,4297.6,0.5086]
[1757152693548,2.12005779,4297.7,4297.6,0.3071]
[1757152694847,6.12005779,4297.7,4297.1,0.3088]
[1757152695050,4.21536326,4297.2,4296.6,0.3088]
[1757152695244,3.21,4296.7,4296.6,0.5103]
[1757152695450,3.84034503,4296.7,4296.6,0.5103]
[1757152697447,3.84034503,4296.7,4296.6,0.3088]
[1757152697647,3.84034503,4296.7,4296.6,0.5103]
[1757152700654,3.84034503,4296.7,4296.6,0.7111]
[1757152703056,3.83814503,4296.7,4296.6,0.7111]
[1757152705258,3.83814503,4296.7,4296.6,0.5103]
[1757152706959,3.83814503,4296.7,4296.6,0.7111]
[1757152709661,3.83814503,4296.7,4296.6,0.3088]
[1757152713460,4.68787114,4296.7,4296.6,0.3088]
[1757152714460,4.68787114,4296.7,4296.1,0.5176]
[1757152714761,0.86334503,4296.6,4296.5,0.4284]
[1757152716656,0.86334503,4296.6,4296.0,0.1277]
[1757152716863,3.9179,4296.1,4296.0,0.3353]
[1757152717061,4.54824503,4296.1,4296.0,0.3353]
[1757152717762,4.24744503,4296.1,4296.0,0.5361]
[1757152718065,4.03584503,4296.1,4296.0,0.5361]
[1757152718752,4.03584503,4296.1,4296.0,0.8461]
[1757152721165,0.7101,4295.6,4295.5,0.4292]
[1757152721465,5.63097114,4295.6,4295.5,0.31]
[1757152721857,4.78124503,4295.6,4295.5,0.31]
[1757152725063,4.78124503,4295.6,4294.6,32.127]
[1757152725259,0.3008,4295.3,4295.1,0.31]
[1757152725465,1.34044503,4295.2,4295.1,0.31]
[1757152725867,1.34044503,4295.2,4295.1,0.5176]
[1757152727965,1.34044503,4295.2,4295.1,0.53292559]
[1757152731969,2.19017114,4295.2,4295.1,0.53292559]
[1757152732471,1.34044503,4295.2,4295.1,0.53292559]
[1757152732669,1.34044503,4295.2,4295.1,0.32532559]
[1757152732881,2.19017114,4295.2,4295.1,0.01532559]
[1757152733573,2.19017114,4295.2,4295.1,0.31992559]
[1757152734873,2.19017114,4295.2,4295.1,0.01532559]
[1757152738377,2.19017114,4295.2,4295.1,0.31992559]
[1757152740475,1.34044503,4295.2,4295.1,0.53422559]
[1757152740669,1.03964503,4295.2,4295.1,0.74782559]
[1757152740976,1.27364503,4295.2,4295.1,0.74782559]
[1757152741174,1.58404503,4295.2,4295.1,0.74782559]
[1757152741573,1.58404503,4295.2,4295.1,0.53422559]
[1757152743381,1.58423306,4295.2,4295.1,0.53422559]
[1757152750489,2.43395917,4295.2,4295.1,0.01532559]
[1757152750884,2.43395917,4295.2,4295.1,0.31992559]
[1757152752390,2.43546113,4295.2,4295.1,0.31992559]
[1757152753884,2.43546113,4295.2,4295.1,0.01532559]
[1757152754292,3.68997389,4295.2,4295.1,0.01532559]
[1757152755192,3.68997389,4295.2,4295.1,0.31992559]
[1757152757080,3.68997389,4295.2,4295.1,0.53422559]
[1757152757885,3.68997389,4295.2,4295.1,0.01532559]
[1757152758089,3.68997389,4295.2,4295.1,0.31992559]
[1757152758492,3.69016789,4295.2,4295.1,0.31992559]
[1757152761496,2.43565513,4295.2,4295.1,0.31992559]
[1757152763190,2.43565513,4295.2,4295.1,0.53002559]
[1757152763191,1.58592902,4295.2,4295.1,0.53002559]
[1757152766005,2.3178399,4295.2,4295.1,1.02527907]
[1757152766204,1.06392902,4295.2,4295.1,1.02527907]
[1757152766406,1.27572902,4295.2,4295.1,1.02527907]
[1757152766701,1.58592902,4295.2,4295.1,1.02527907]
[1757152769315,1.06392902,4295.2,4295.1,1.02527907]
[1757152769514,1.58572902,4295.2,4295.1,1.02527907]
[1757152775414,0.86622902,4295.2,4295.1,1.02527907]
[1757152775719,1.06102902,4295.2,4295.1,1.02527907]
[1757152776119,1.58282902,4295.2,4295.1,1.02527907]
[1757152777225,1.27282902,4295.2,4295.1,1.02527907]
[1757152779123,1.58282902,4295.2,4295.1,1.02527907]
[1757152781020,1.03882902,4295.2,4295.1,1.02527907]
[1757152781220,0.86622902,4295.2,4295.1,1.02527907]
[1757152781420,1.06102902,4295.2,4295.1,1.02527907]
[1757152781921,0.86622902,4295.2,4295.1,1.02527907]
[1757152782121,1.06102902,4295.2,4295.1,1.02527907]
[1757152783925,0.63222902,4295.2,4295.1,1.25809906]
[1757152784929,0.63222902,4295.2,4295.1,1.02527907]
[1757152785326,0.63222902,4295.2,4295.1,1.25809906]
[1757152785822,0.63222902,4295.2,4295.1,1.02527907]
[1757152788022,1.03882902,4295.2,4295.1,1.02527907]
[1757152788224,1.34882902,4295.2,4295.1,1.02527907]
[1757152789930,1.03882902,4295.2,4295.1,1.02527907]
[1757152790832,1.03882902,4295.2,4295.1,1.02662711]
[1757152802843,1.03882902,4295.2,4295.1,0.60822711]
[1757152803041,1.34972902,4295.2,4295.1,0.01532559]
[1757152803340,0.7251,4294.6,4294.5,0.3207]
[1757152803637,1.04642902,4294.6,4294.5,0.8652]
[1757152803840,0.63222902,4294.6,4294.5,0.8652]
[1757152804245,0.83912902,4294.6,4294.5,0.8652]
[1757152804640,0.63222902,4294.6,4294.5,0.8652]
[1757152805346,0.63222902,4294.6,4294.5,5.09805]
[1757152805741,3.2078,4295.2,4294.5,5.09805]
[1757152806045,0.3111,4295.6,4295.5,0.4217]
[1757152806343,0.1193,4295.5,4295.0,0.3207]
[1757152806646,0.518,4295.1,4295.0,0.7424]
[1757152807436,3.2078,4295.8,4295.1,0.3207]
[1757152807640,3.9331,4295.8,4295.7,0.7424]
[1757152807848,3.9331,4295.8,4295.7,0.4217]
[1757152808745,3.9331,4295.8,4295.7,0.7424]
[1757152809443,3.9331,4295.8,4295.7,1.03137644]
[1757152810447,3.9331,4295.8,4295.7,0.28897644]
[1757152814251,3.9331,4295.8,4295.7,0.50067644]
[1757152815147,3.9331,4295.8,4295.7,0.2117]
[1757152815352,3.9331,4295.8,4295.7,0.50050289]
[1757152815554,3.9331,4295.8,4295.7,1.03120289]
[1757152816355,3.7258,4295.8,4295.7,1.03120289]
[1757152816653,3.9331,4295.8,4295.7,0.71050289]
[1757152817754,4.56105016,4295.8,4295.7,0.71050289]
[1757152818355,4.56105016,4295.8,4295.7,0.28880289]
[1757152818957,4.56105016,4295.8,4295.7,0.28886885]
[1757152819147,4.56105016,4295.8,4295.7,0.49886885]
[1757152820155,4.56105016,4295.8,4295.7,0.28886885]
[1757152820851,4.56105016,4295.8,4295.7,0.49886885]
[1757152821055,4.35375016,4295.8,4295.7,1.01976885]
[1757152821254,3.83575016,4295.8,4295.7,1.01976885]
[1757152821456,4.15315016,4295.8,4295.7,1.01976885]
[1757152821657,4.36085016,4295.8,4295.7,1.01976885]
[1757152822155,4.15315016,4295.8,4295.7,1.01976885]
[1757152822857,4.36085016,4295.8,4295.7,1.01976885]
[1757152824555,0.94535016,4295.8,4295.7,1.25376885]
[1757152825059,1.36745016,4295.8,4295.7,1.25376885]
[1757152825959,1.15305016,4295.8,4295.7,1.25376885]
[1757152826152,0.94535016,4295.8,4295.7,1.25376885]
[1757152826857,0.62795016,4295.8,4295.7,1.25376885]
[1757152827057,0.94535016,4295.8,4295.7,1.25376885]
[1757152827258,1.15305016,4295.8,4295.7,1.25376885]
[1757152828866,0.3174,4295.8,4295.7,1.25376885]
[1757152829364,0.5251,4295.8,4295.7,1.25376885]
[1757152830263,0.7395,4295.8,4295.7,0.73286885]
[1757152831461,0.7395,4295.8,4295.7,0.49886885]
[1757152832962,0.7395,4295.8,4295.7,0.28886885]
[1757152833363,1.36799105,4295.8,4295.7,0.28886885]
[1757152837258,1.36799105,4295.8,4295.7,0.29104719]
[1757152837767,0.4221,4295.2,4295.1,0.234]
[1757152837966,0.7395,4295.2,4295.1,0.234]
[1757152838461,0.4221,4294.9,4294.8,0.84997823]
[1757152838760,0.7395,4294.9,4294.8,1.08397823]
[1757152838958,3.6299,4294.9,4294.8,0.234]
[1757152839151,4.25925645,4294.9,4294.8,0.234]
[1757152839556,4.57665645,4294.9,4294.8,0.234]
[1757152839756,4.57665645,4294.9,4294.4,0.84997823]
[1757152839757,0.8653,4294.5,4294.4,0.84997823]
[1757152839957,0.8653,4294.5,4294.4,1.08397823]
[1757152840265,0.6509,4294.5,4294.4,1.08397823]
[1757152841069,0.6509,4294.5,4294.4,0.234]
[1757152841265,0.8653,4294.5,4294.4,1.08397823]
[1757152841467,0.4432,4294.5,4294.4,1.08397823]
[1757152841772,0.6509,4294.5,4294.4,1.08397823]
[1757152842567,0.6509,4294.5,4294.4,0.84997823]
[1757152842775,0.8653,4294.5,4294.4,1.08397823]
[1757152845169,0.4432,4294.5,4294.4,1.08397823]
[1757152845375,0.6509,4294.5,4294.4,1.08397823]
[1757152845864,0.8653,4294.5,4294.4,0.234]
[1757152846061,0.3174,4294.4,4294.2,0.84997823]
[1757152846264,0.7395,4294.3,4294.2,0.84997823]
[1757152846573,0.7395,4294.3,4294.2,1.08397823]
[1757152848078,0.7395,4294.3,4294.2,6.45497823]
[1757152848464,0.7395,4294.3,4294.2,5.371]
[1757152848665,0.7395,4294.3,4294.2,5.605]
[1757152848872,0.7395,4294.3,4294.2,0.234]
[1757152850574,0.3174,4294.3,4294.2,0.234]
[1757152852068,0.512,4294.3,4294.2,0.234]
[1757152852672,0.512,4294.3,4294.2,0.52036227]
[1757152853672,0.512,4294.3,4294.2,0.234]
[1757152856073,0.7169,4294.3,4294.2,0.234]
[1757152856576,0.7056,4294.1,4294.0,23.69715542]
[1757152856772,0.7056,4294.1,4294.0,23.93115542]
[1757152856970,0.7056,4294.1,4294.0,23.69715542]
[1757152857172,0.7056,4294.1,4294.0,23.93115542]
[1757152857877,0.7056,4294.1,4294.0,24.78113365]
[1757152861879,0.7056,4294.1,4294.0,24.54713365]
[1757152862180,0.7056,4294.1,4294.0,24.78113365]
[1757152862781,0.3061,4294.1,4294.0,24.78113365]
[1757152862980,3.2078,4294.3,4294.0,24.78113365]
[1757152863180,0.3061,4294.2,4294.0,24.78113365]
[1757152863373,3.2078,4294.3,4294.0,24.78113365]
[1757152863582,0.3061,4294.2,4294.0,24.78113365]
[1757152863874,3.2078,4294.3,4294.0,24.78113365]
[1757152865082,0.3061,4294.2,4294.0,24.78113365]
[1757152865382,3.2078,4294.3,4294.0,24.78113365]
[1757152866383,0.3061,4294.2,4294.0,24.78113365]
[1757152866683,3.2078,4294.3,4294.0,24.78113365]
[1757152866982,0.3061,4294.2,4294.0,24.78113365]
[1757152867182,3.2078,4294.3,4294.0,24.78113365]
[1757152867480,0.3061,4294.2,4294.0,24.78113365]
[1757152867680,3.2078,4294.3,4294.0,24.78113365]
[1757152867978,3.5139,4294.3,4294.0,24.78113365]
[1757152868181,3.2078,4294.3,4294.0,25.63111188]
[1757152868382,3.2078,4294.3,4294.0,26.28314188]
[1757152868583,3.2078,4294.3,4294.0,26.05027188]
[1757152868879,3.2078,4294.3,4294.0,24.78113365]
[1757152869089,0.3061,4294.2,4294.0,24.78113365]
[1757152869384,0.3061,4294.2,4294.1,5.371]
[1757152869880,3.2078,4294.3,4294.1,5.371]
[1757152870076,3.5139,4294.3,4294.2,0.234]
[1757152870279,0.3061,4294.7,4294.2,0.65313]
[1757152870486,0.3061,4294.7,4294.6,0.84997823]
[1757152870684,0.3061,4294.7,4294.6,1.08397823]
[1757152874384,0.1258,4295.0,4294.6,1.50307823]
[1757152874587,0.6265,4295.0,4294.9,0.84997823]
[1757152874776,0.6265,4295.0,4294.9,1.08397823]
[1757152878691,0.6265,4295.0,4294.5,0.41911]
[1757152878692,0.8314,4295.0,4294.5,0.41911]
[1757152878989,0.8314,4295.0,4294.8,0.84997823]
[1757152878990,0.7339,4294.9,4294.8,0.84997823]
[1757152879992,0.1258,4295.0,4294.9,2.2661]
[1757152880193,0.5437,4295.0,4294.9,2.7074]
[1757152881491,0.5437,4295.0,4294.9,2.9992]
[1757152882092,0.8597,4295.0,4294.9,2.9992]
[1757152883495,0.8597,4295.0,4294.9,3.84917823]
[1757152884494,0.8597,4295.0,4294.9,3.61517823]
[1757152884799,0.8597,4295.0,4294.9,3.84917823]
[1757152885893,0.8597,4295.0,4294.9,2.2661]
[1757152886303,0.8597,4295.0,4294.9,2.5001]
[1757152886689,1.48765669,4295.0,4294.9,2.5001]
[1757152888086,1.48765669,4295.0,4294.9,2.2661]
[1757152888288,1.48765669,4295.0,4294.9,2.5001]
[1757152890190,0.8597,4295.0,4294.9,2.5001]
[1757152890393,1.48772971,4295.0,4294.9,2.5001]
[1757152890994,1.48772971,4295.0,4294.9,2.7074]
[1757152891892,1.48772971,4295.0,4294.9,4.05387823]
[1757152892095,1.36192971,4295.0,4294.9,4.05387823]
[1757152892802,1.36192971,4295.0,4294.9,4.34541448]
[1757152893405,1.36192971,4295.0,4294.9,3.49543625]
[1757152893801,1.15662971,4295.0,4294.9,3.49543625]
[1757152894005,0.62802971,4295.0,4294.9,3.49543625]